bitfinex-derivatives/quotes_SOLF0:USTF0_20260118
["timestamp","ask_amount","ask_price","bid_price","bid_amount"]
[1768757407102,8.1103676,142.14,142.07,3.59129477]
[1768757407302,5.26631765,142.13,142.07,3.59129477]
[1768757407502,486.66864478,142.15,142.05,3.59129477]
[1768757407503,8.1112676,142.12,142.05,3.59129477]
[1768757408105,1.7755676,142.12,142.05,3.59129477]
[1768757411208,6.3352,142.13,142.05,3.59129477]
[1768757411508,8.1107676,142.13,142.05,3.59129477]
[1768757413012,8.11128716,142.13,142.05,3.59129477]
[1768757417414,1.77608716,142.13,142.05,3.59129477]
[1768757419018,1.77608716,142.14,142.05,3.59129477]
[1768757419316,5.2685152,142.13,142.05,3.59129477]
[1768757419518,1.77608716,142.14,142.08,0.04461686]
[1768757419817,5.26867978,142.13,142.08,0.04461686]
[1768757420021,1.77608716,142.14,142.08,0.04461686]
[1768757420205,5.26867978,142.13,142.08,0.04461686]
[1768757420409,1.77608716,142.14,142.08,0.04461686]
[1768757420720,5.26885092,142.13,142.08,0.04461686]
[1768757421013,1.77608716,142.14,142.08,0.04461686]
[1768757421215,5.26885092,142.13,142.08,0.04461686]
[1768757421420,0.0457595,142.12,142.06,3.59129477]
[1768757426017,1.82184666,142.12,142.06,3.59129477]
[1768757440835,1.77608716,142.1,142.06,3.59129477]
[1768757444131,6.3812595,142.12,142.06,3.59129477]
[1768757444330,1.77608716,142.1,142.06,3.59129477]
[1768757446737,6.3812595,142.12,142.06,3.59129477]
[1768757446934,1.77608716,142.1,142.06,3.59129477]
[1768757450937,6.3812595,142.12,142.06,3.59129477]
[1768757451138,1.77608716,142.1,142.06,3.59129477]
[1768757452041,6.3812595,142.12,142.06,3.59129477]
[1768757452339,1.77608716,142.1,142.06,3.59129477]
[1768757456542,1.77608716,142.1,142.01,14.9549061]
[1768757456743,1.77608716,142.1,142.02,3.57505565]
[1768757457346,0.04621272,142.07,142.02,3.57505565]
[1768757457543,1.77608716,142.1,142.02,3.57505565]
[1768757457845,1.77608716,142.1,142.05,3.62190077]
[1768757462650,6.3355,142.12,142.05,3.62190077]
[1768757462840,1.77608716,142.1,142.05,3.62190077]
[1768757474758,6.335,142.14,142.05,3.62190077]
[1768757474957,1.77644518,142.11,142.05,3.62190077]
[1768757475157,1.77644518,142.11,142.05,3.57505565]
[1768757475558,1.77644518,142.11,142.07,0.04689348]
[1768757478656,6.335,142.14,142.07,0.04689348]
[1768757478861,1.77644518,142.11,142.07,0.04689348]
[1768757487868,6.335,142.14,142.07,0.04689348]
[1768757488166,1.77644518,142.11,142.07,0.04689348]
[1768757490774,6.335,142.14,142.07,0.04689348]
[1768757490974,1.77644518,142.11,142.07,0.04689348]
[1768757491274,1.77644518,142.12,142.07,0.04689348]
[1768757491473,5.27260246,142.11,142.07,0.04689348]
[1768757491773,1.77644518,142.12,142.07,0.04689348]
[1768757491974,5.27287709,142.11,142.07,0.04689348]
[1768757492272,1.77644518,142.12,142.07,0.04689348]
[1768757492571,5.27279618,142.11,142.07,0.04689348]
[1768757492769,1.77644518,142.12,142.07,0.04689348]
[1768757492969,5.27279618,142.11,142.07,0.04689348]
[1768757493172,1.77644518,142.12,142.07,0.04689348]
[1768757493371,5.27272488,142.11,142.07,0.04689348]
[1768757493567,1.77644518,142.12,142.07,0.04689348]
[1768757493772,5.27272481,142.11,142.07,0.04689348]
[1768757493973,1.77644518,142.12,142.07,0.04689348]
[1768757494172,5.27272522,142.11,142.07,0.04689348]
[1768757494372,1.77644518,142.12,142.07,0.04689348]
[1768757494569,5.27265985,142.11,142.07,0.04689348]
[1768757494873,1.77644518,142.12,142.07,0.04689348]
[1768757495073,5.27265985,142.11,142.07,0.04689348]
[1768757495274,1.77644518,142.12,142.07,0.04689348]
[1768757495478,5.27260094,142.11,142.07,0.04689348]
[1768757495776,1.77644518,142.12,142.07,0.04689348]
[1768757495973,5.27260094,142.11,142.07,0.04689348]
[1768757496178,1.77644518,142.12,142.07,0.04689348]
[1768757496378,5.27254746,142.11,142.07,0.04689348]
[1768757496578,1.77644518,142.12,142.07,0.04689348]
[1768757496779,5.27254746,142.11,142.07,0.04689348]
[1768757497076,1.77644518,142.12,142.07,0.04689348]
[1768757497276,5.27254746,142.11,142.07,0.04689348]
[1768757497468,1.77644518,142.12,142.07,0.04689348]
[1768757497673,5.27249865,142.11,142.07,0.04689348]
[1768757497971,1.77644518,142.12,142.07,0.04689348]
[1768757498167,5.27249865,142.11,142.07,0.04689348]
[1768757498367,1.77644518,142.12,142.07,0.04689348]
[1768757498580,5.27245397,142.11,142.07,0.04689348]
[1768757498877,1.77644518,142.12,142.07,0.04689348]
[1768757499079,5.27245397,142.11,142.07,0.04689348]
[1768757499278,1.77644518,142.12,142.07,0.04689348]
[1768757499473,1.77644518,142.14,142.07,3.50471074]
[1768757511494,266.1,142.16,142.07,3.50471074]
[1768757511689,1.77644518,142.13,142.07,3.50471074]
[1768757511890,1.77644518,142.13,142.07,3.45781726]
[1768757512291,1.77644518,142.13,142.09,0.04995222]
[1768757513598,1.77644518,142.13,142.09,3.78629865]
[1768757514196,1.77644518,142.14,142.09,3.78629865]
[1768757519202,1.77644518,142.12,142.09,3.78629865]
[1768757520499,266.1,142.16,142.09,3.78629865]
[1768757520701,1.77644518,142.12,142.09,3.78629865]
[1768757521609,1.77644518,142.13,142.09,3.78629865]
[1768757521799,266.1,142.16,142.09,3.78629865]
[1768757522000,1.77644518,142.13,142.09,3.78629865]
[1768757522507,1.77644518,142.14,142.09,3.78629865]
[1768757522906,1.77644518,142.14,142.09,3.73634643]
[1768757523405,1.77644518,142.14,142.1,0.0501201]
[1768757523704,1.77644518,142.14,142.1,3.78646653]
[1768757532509,1.77644518,142.13,142.1,3.78646653]
[1768757534619,187.4316594,142.18,142.1,3.78646653]
[1768757534916,1.77644518,142.15,142.1,3.78646653]
[1768757536914,1.77534838,142.15,142.1,3.78646653]
[1768757542419,187.4316594,142.18,142.1,3.78646653]
[1768757542720,1.77534838,142.15,142.1,3.78646653]
[1768757552424,193.7645594,142.18,142.1,3.78646653]
[1768757552627,1.77534838,142.15,142.1,3.78646653]
[1768757557827,1.77534838,142.11,142.07,3.78051847]
[1768757559131,0.04893415,142.1,142.07,3.78051847]
[1768757559432,0.04893415,142.1,142.01,1.77534838]
[1768757559730,1.77534838,142.09,142.01,1.77534838]
[1768757560731,1.77534838,142.09,142.04,0.0500579]
[1768757561426,1.77534838,142.09,142.05,3.78051847]
[1768757565929,1.97623298,142.11,142.05,3.78051847]
[1768757566130,3.78305876,142.13,142.05,3.78051847]
[1768757566330,2.00771038,142.13,142.08,3.78051847]
[1768757567634,2.00771038,142.13,142.09,0.05415774]
[1768757573834,3.84984877,142.15,142.09,0.05415774]
[1768757574340,2.08138303,142.14,142.09,0.05415774]
[1768757578638,3.85673141,142.14,142.09,0.05415774]
[1768757580443,3.85673141,142.14,142.08,3.78051847]
[1768757580646,2.12104589,142.13,142.08,3.78051847]
[1768757580846,2.12104589,142.11,142.04,3.5376346]
[1768757581438,1.77534838,142.12,142.04,3.5376346]
[1768757581946,1.77534838,142.12,142.06,3.58480662]
[1768757587440,2.12743036,142.13,142.06,3.58480662]
[1768757592542,2.12743036,142.13,142.07,3.5376346]
[1768757596855,3.90322454,142.13,142.07,3.5376346]
[1768757599253,1.77579418,142.13,142.07,3.5376346]
[1768757599459,2.22992379,142.12,142.07,3.5376346]
[1768757620274,0.05309636,142.11,142.07,3.5376346]
[1768757620569,2.33268003,142.14,142.08,6.3371]
[1768757620876,2.33268003,142.14,142.09,3.72184646]
[1768757621771,2.33268003,142.14,142.1,0.0462377]
[1768757630689,6.3336,142.17,142.1,0.0462377]
[1768757630885,1.77579418,142.15,142.1,0.0462377]
[1768757632887,0.06184371,142.14,142.1,0.0462377]
[1768757636887,0.09504549,142.17,142.11,1.77579418]
[1768757637789,0.09504549,142.17,142.11,8.11149418]
[1768757639184,0.09504549,142.17,142.11,6.3357]
[1768757642694,0.09504549,142.17,142.11,10.34792126]
[1768757647496,0.17852578,142.16,142.1,6.3825377]
[1768757652693,0.17852578,142.16,142.1,10.39475896]
[1768757653901,0.17852578,142.16,142.1,4.05845896]
[1768757655296,0.17852578,142.16,142.1,5.83425314]
[1768757658905,0.17852578,142.16,142.11,1.77484988]
[1768757659303,0.17852578,142.16,142.11,5.78707114]
[1768757659601,6.3333,142.17,142.12,4.01222126]
[1768757660401,6.3333,142.17,142.13,0.04852743]
[1768757660701,6.59788227,142.17,142.13,0.04852743]
[1768757664304,5.27773586,142.16,142.13,0.04852743]
[1768757664602,0.04989855,142.16,142.12,4.01222126]
[1768757665801,0.04989855,142.16,142.13,0.04448165]
[1768757667503,0.04989855,142.16,142.11,1.77484988]
[1768757669407,0.04989855,142.16,142.11,5.62982172]
[1768757669601,0.04989855,142.16,142.12,0.0459343]
[1768757672306,3.91868035,142.16,142.11,5.62982172]
[1768757680910,21.13,142.2,142.11,1.77484988]
[1768757681106,1.77484988,142.48,142.33,98.4061]
[1768757681307,623.91250405,142.57,142.24,21.13]
[1768757681308,264.14098725,142.47,142.24,21.13]
[1768757681508,1.77484988,142.42,142.23,104.8006]
[1768757681813,1.77484988,142.38,142.26,1.77484988]
[1768757682010,1.77484988,142.39,142.27,8.02822621]
[1768757682313,1.77484988,142.39,142.28,9.80307609]
[1768757682503,1.77484988,142.39,142.29,8.02822621]
[1768757682702,1.77484988,142.39,142.28,1.77484988]
[1768757682916,1.77484988,142.39,142.3,1.77484988]
[1768757683212,3.80094566,142.39,142.3,1.77484988]
[1768757683414,3.80094566,142.39,142.24,104.7948]
[1768757683613,3.80094566,142.39,142.29,1.77484988]
[1768757684510,3.80094566,142.39,142.24,104.7948]
[1768757691316,3.80094566,142.39,142.24,6.3301]
[1768757691511,3.80094566,142.39,142.3,0.04914347]
[1768757691822,0.04653538,142.33,142.24,6.3301]
[1768757692011,265.72,142.32,142.24,6.3301]
[1768757692214,127.46824305,142.32,142.24,6.3301]
[1768757693123,0.0457206,142.29,142.24,6.3301]
[1768757693325,265.7,142.31,142.24,6.3301]
[1768757693519,112.12745606,142.31,142.24,6.3301]
[1768757694825,0.04928428,142.29,142.24,6.3301]
[1768757695020,112.12745606,142.31,142.26,0.05201335]
[1768757696223,272.37565671,142.33,142.26,0.05201335]
[1768757696729,272.37565671,142.33,142.22,221.8108]
[1768757697120,272.37565671,142.33,142.28,0.05207643]
[1768757698730,6.69565671,142.32,142.22,123.331]
[1768757698930,6.69565671,142.32,142.22,117.0]
[1768757699130,6.74600359,142.32,142.22,117.0]
[1768757699526,6.69565671,142.32,142.22,117.0]
[1768757700222,0.04876826,142.28,142.22,117.0]
[1768757700422,0.04876826,142.28,142.21,123.3311]
[1768757701936,6.74442497,142.28,142.21,117.0]
[1768757709948,265.68,142.27,142.21,117.0]
[1768757710839,265.68,142.27,142.21,123.3313]
[1768757711247,6.74442497,142.28,142.21,123.3313]
[1768757711548,265.7,142.27,142.21,123.3313]
[1768757717048,265.7,142.27,142.22,6.3308]
[1768757717249,0.04876826,142.28,142.22,6.3308]
[1768757717449,0.04876826,142.28,142.21,117.0]
[1768757717450,265.7,142.27,142.21,117.0]
[1768757718047,265.7,142.27,142.23,6.3304]
[1768757720449,0.04876826,142.28,142.23,6.3304]
[1768757720653,265.7,142.26,142.23,6.3304]
[1768757722056,265.7,142.26,142.24,6.33]
[1768757723758,265.74518932,142.26,142.24,6.33]
[1768757723947,243.93718932,142.26,142.24,6.33]
[1768757724152,252.19982381,142.26,142.21,221.96512646]
[1768757724547,8.26263449,142.25,142.21,221.96512646]
[1768757725152,243.93718932,142.26,142.21,221.96512646]
[1768757725460,243.93718932,142.26,142.22,6.47872646]
[1768757725758,243.93718932,142.26,142.23,6.3303]
[1768757726561,243.93718932,142.26,142.23,12.80902646]
[1768757728159,243.93718932,142.26,142.23,6.3303]
[1768757730861,243.93718932,142.26,142.23,12.80902646]
[1768757731859,243.93718932,142.26,142.23,6.47872646]
[1768757733064,8.26263449,142.29,142.22,6.47872646]
[1768757733273,265.68,142.28,142.23,6.47872646]
[1768757733865,273.94263449,142.28,142.23,6.47872646]
[1768757734762,273.94263449,142.28,142.23,12.80912646]
[1768757734967,273.94263449,142.28,142.24,0.04471503]
[1768757743071,273.94263449,142.28,142.24,6.52344149]
[1768757743268,8.9596068,142.27,142.24,6.52344149]
[1768757743667,8.9596068,142.27,142.25,6.47872646]
[1768757745270,8.9596068,142.27,142.25,5.80861636]
[1768757745678,8.9596068,142.27,142.24,0.04471503]
[1768757752879,9.0193935,142.3,142.24,0.04471503]
[1768757753076,274.6793935,142.29,142.24,117.04471503]
[1768757753385,274.6793935,142.29,142.24,117.0]
[1768757753682,274.6793935,142.29,142.25,0.04695681]
[1768757754986,9.0193935,142.29,142.25,0.04695681]
[1768757755185,265.66,142.28,142.25,0.04695681]
[1768757759789,9.0193935,142.29,142.25,0.04695681]
[1768757759790,265.66,142.27,142.25,0.04695681]
[1768757760888,9.0193935,142.29,142.25,0.04695681]
[1768757761085,265.66,142.28,142.25,0.04695681]
[1768757763195,9.0193935,142.29,142.25,0.04695681]
[1768757763386,265.64,142.28,142.25,0.04695681]
[1768757764593,9.0193935,142.32,142.25,0.04695681]
[1768757764793,9.0193935,142.3,142.25,0.04695681]
[1768757782311,8.71017506,142.27,142.2,13.11731751]
[1768757782515,8.71017506,142.25,142.16,102.00646262]
[1768757782814,8.71017506,142.25,142.17,8.25196871]
[1768757783703,0.04503992,142.22,142.17,8.25196871]
[1768757785317,0.04503992,142.22,142.18,0.0524431]
[1768757791120,0.04503992,142.22,142.18,8.30441181]
[1768757792719,0.04503992,142.22,142.18,96.33796538]
[1768757796327,8.71017506,142.24,142.18,96.33796538]
[1768757796529,274.41017506,142.24,142.18,96.33796538]
[1768757798630,9.34919344,142.23,142.18,96.33796538]
[1768757802235,9.34919344,142.23,142.18,102.67066538]
[1768757806742,9.34919344,142.23,142.19,6.3322]
[1768757806936,265.7,142.24,142.19,6.3322]
[1768757807132,265.7,142.24,142.19,15.71551342]
[1768757809643,275.04919344,142.24,142.19,15.71551342]
[1768757809947,275.04919344,142.24,142.2,6.3318]
[1768757814954,264.47139344,142.24,142.21,6.3314]
[1768757815145,242.77529344,142.24,142.21,6.3314]
[1768757815346,210.27929344,142.24,142.21,6.3314]
[1768757815547,188.65759344,142.24,142.21,6.3314]
[1768757817248,5.205e-05,142.23,142.21,6.3314]
[1768757817846,5.205e-05,142.23,142.21,6.37968716]
[1768757819352,158.13645205,142.24,142.21,6.37968716]
[1768757819557,126.37845205,142.24,142.21,6.37968716]
[1768757819858,94.62425205,142.24,142.21,6.37968716]
[1768757820057,84.04205205,142.24,142.21,6.37968716]
[1768757821157,84.04205205,142.24,142.21,0.04828716]
[1768757821457,8.64e-05,142.23,142.21,0.04828716]
[1768757825364,0.04657072,142.23,142.21,0.04828716]
[1768757827359,0.04657072,142.23,142.21,0.00324724]
[1768757840571,1.26028279,142.22,142.16,6.54648363]
[1768757840769,1.26028279,142.22,142.15,6.54648363]
[1768757841565,7.59138279,142.22,142.15,6.54648363]
[1768757841766,0.04654024,142.2,142.15,6.54648363]
[1768757842074,1.36131191,142.2,142.15,6.54648363]
[1768757843370,1.36131191,142.2,142.14,22.67119886]
[1768757847874,1.36131191,142.2,142.14,16.33699886]
[1768757848080,1.36131191,142.2,142.14,6.54648363]
[1768757848279,1.36131191,142.2,142.13,88.03355357]
[1768757848280,1.36131191,142.2,142.13,94.5800372]
[1768757848580,1.36131191,142.2,142.13,105.90785]
[1768757849079,1.75108043,142.19,142.13,105.90785]
[1768757849281,1.75108043,142.19,142.13,99.36136637]
[1768757854283,1.75108043,142.19,142.13,11.3278128]
[1768757854988,2.02062461,142.18,142.11,94.5800372]
[1768757855186,2.02062461,142.18,142.11,11.3278128]
[1768757855585,2.06291285,142.17,142.11,11.3278128]
[1768757855791,0.04491416,142.16,142.11,11.3278128]
[1768757857887,2.25782169,142.16,142.11,11.3278128]
[1768757859191,8.59162169,142.16,142.11,11.3278128]
[1768757861503,6.3342,142.15,142.11,11.3278128]
[1768757862397,6.3342,142.15,142.11,1.28e-05]
[1768757862599,6.3342,142.15,142.07,88.03355357]
[1768757863604,0.05240556,142.12,142.07,88.03355357]
[1768757864507,0.05240556,142.12,142.08,11.72840053]
[1768757868802,0.05240556,142.12,142.09,11.72840053]
[1768757869006,0.05240556,142.12,142.09,0.81230053]
[1768757869405,2.21290753,142.16,142.09,0.81230053]
[1768757869608,2.21290753,142.16,142.09,0.86366823]
[1768757882908,2.21290753,142.16,142.09,7.20036823]
[1768757886519,0.04568813,142.14,142.09,7.20036823]
[1768757887019,0.04568813,142.14,142.1,6.3363]
[1768757888820,12.15215685,142.18,142.12,18.75537959]
[1768757890223,12.15215685,142.18,142.14,0.0485569]
[1768757891226,12.15215685,142.18,142.12,18.75537959]
[1768757891521,0.05190819,142.17,142.12,18.75537959]
[1768757892625,0.05190819,142.17,142.13,0.05150963]
[1768757893325,12.20406504,142.17,142.13,0.00197284]
[1768757904231,12.83588504,142.16,142.1,18.96692192]
[1768757904432,12.83588504,142.16,142.1,12.41997959]
[1768757926062,265.94,142.15,142.1,12.41997959]
[1768757926765,12.83588504,142.16,142.1,12.41997959]
[1768757926963,0.04525351,142.14,142.1,12.41997959]
[1768757944377,265.94,142.15,142.1,12.41997959]
[1768757944577,265.94,142.15,142.11,0.05277862]
[1768757944778,265.94,142.15,142.11,14.21682591]
[1768757948894,12.83588504,142.16,142.11,14.21682591]
[1768757949188,265.94,142.14,142.11,14.21682591]
[1768757950190,12.83588504,142.16,142.11,14.21682591]
[1768757950488,265.94,142.15,142.11,14.21682591]
[1768757955394,13.4024912,142.18,142.12,14.16404729]
[1768757955590,265.94,142.17,142.12,14.16404729]
[1768757955788,265.94,142.17,142.12,20.75248646]
[1768757956292,265.94,142.17,142.12,14.16404729]
[1768757956691,265.94,142.17,142.13,0.04880518]
[1768757967510,280.14648417,142.17,142.13,0.04880518]
[1768757992828,13.28365637,142.16,142.13,0.04880518]
[1768757994528,13.3280262,142.16,142.13,0.04880518]
[1768757997536,13.3280262,142.16,142.13,0.00355167]
[1768758001734,13.3280262,142.16,142.08,108.59266261]
[1768758002037,13.3280262,142.16,142.08,102.00422344]
[1768758002229,13.28365637,142.15,142.06,12.92623917]
[1768758002428,13.28365637,142.13,142.06,26.89690904]
[1768758002628,13.28365637,142.13,142.06,114.93046261]
[1768758002931,13.28365637,142.13,142.07,6.3376]
[1768758003130,0.050495,142.11,142.07,20.30826987]
[1768758003336,265.950495,142.11,142.07,20.30826987]
[1768758007537,265.950495,142.11,142.08,0.04889022]
[1768758010435,279.23415137,142.11,142.08,0.04889022]
[1768758020440,13.28365637,142.1,142.05,12.91987951]
[1768758020642,13.28365637,142.1,142.03,88.03355357]
[1768758021146,13.28365637,142.09,142.01,88.03355357]
[1768758021336,13.28365637,142.07,141.99,20.55214938]
[1768758021536,13.28365637,142.05,141.99,13.97066987]
[1768758022048,0.04686968,142.04,141.99,13.97066987]
[1768758022248,231.8794,142.03,141.99,13.97066987]
[1768758022450,197.234,142.03,141.99,13.97066987]
[1768758022650,0.04686968,142.04,142.01,6.3402]
[1768758035957,0.04686968,142.04,142.0,14.08277827]
[1768758042452,0.04686968,142.04,142.0,20.42347827]
[1768758042653,0.04686968,142.04,142.01,14.20327143]
[1768758043055,0.04686968,142.04,141.99,102.236825]
[1768758043247,0.04686968,142.04,142.0,14.20327143]
[1768758052766,0.04686968,142.04,142.01,14.17231285]
[1768758054264,0.04686968,142.04,142.01,20.51261285]
[1768758054461,129.55324009,142.06,142.02,14.17231285]
[1768758055566,266.1,142.08,142.02,14.17231285]
[1768758055760,0.0496352,142.05,142.03,14.17231285]
[1768758064389,14.22738821,142.09,142.03,14.17231285]
[1768758064683,14.22738821,142.09,142.03,14.22211652]
[1768758080901,0.04831055,142.07,142.03,14.22211652]
[1768758090111,14.3431094,142.11,142.04,14.55701254]
[1768758090411,6.3357,142.12,142.04,14.55701254]
[1768758090615,20.6788094,142.12,142.04,14.55701254]
[1768758091704,20.6788094,142.12,142.07,0.05393885]
[1768758095613,14.3431094,142.12,142.07,14.61095139]
[1768758095821,20.6779094,142.14,142.07,14.61095139]
[1768758097418,20.6779094,142.14,142.08,14.4314816]
[1768758097610,14.3431094,142.14,142.08,14.4314816]
[1768758097819,20.95082151,142.16,142.08,14.4314816]
[1768758098220,20.95082151,142.16,142.09,14.4314816]
[1768758098709,20.95082151,142.16,142.11,0.05140349]
[1768758099111,14.61682151,142.16,142.11,14.48288509]
[1768758111824,14.61682151,142.16,142.11,0.05140349]
[1768758165775,20.95062151,142.16,142.11,0.05140349]
[1768758165976,0.05242752,142.15,142.11,0.05140349]
[1768758166177,14.26784412,142.14,142.11,0.05140349]
[1768758178796,0.05242752,142.15,142.11,0.05140349]
[1768758181095,14.33973806,142.15,142.11,0.05140349]
[1768758192914,0.05242752,142.15,142.11,0.05140349]
[1768758194813,14.33973806,142.15,142.11,0.05140349]
[1768758206817,0.05242752,142.15,142.11,0.05140349]
[1768758208822,13.70944298,142.15,142.11,0.05140349]
[1768758220835,0.05242752,142.15,142.11,0.05140349]
[1768758222833,13.62919698,142.15,142.11,0.05140349]
[1768758225634,13.62919698,142.15,142.09,15.05890852]
[1768758227037,13.62919698,142.15,142.11,0.05185685]
[1768758249556,0.05242752,142.15,142.11,6.38765685]
[1768758249756,0.00102403,142.15,142.11,6.38765685]
[1768758250454,0.00102403,142.15,142.11,12.97050382]
[1768758257167,0.00102403,142.15,142.11,6.38765685]
[1768758259566,0.00102403,142.15,142.11,12.97050382]
[1768758265767,0.00102403,142.15,142.11,26.26217621]
[1768758266269,13.90024821,142.15,142.11,12.97050382]
[1768758266568,13.90024821,142.15,142.11,0.05185685]
[1768758276783,13.90024821,142.15,142.11,6.63470382]
[1768758280584,13.90024821,142.15,142.11,0.05185685]
[1768758400100,13.90024821,142.15,142.11,6.38755685]
[1768758400401,5.10257032,142.15,142.11,6.38755685]
[1768758407906,6.3314,142.22,142.12,6.3353]
[1768758408202,6.3314,142.22,142.13,13.98124087]
[1768758408203,169.36419139,142.22,142.13,13.98124087]
[1768758408397,169.36419139,142.22,142.13,102.01479444]
[1768758408799,169.36419139,142.22,142.16,0.04845487]
[1768758410002,12.78316827,142.21,142.16,0.04845487]
[1768758414712,19.11476827,142.21,142.13,13.98124087]
[1768758414912,13.16621856,142.2,142.13,13.98124087]
[1768758415107,13.16621856,142.2,142.11,13.71889633]
[1768758415811,13.16621856,142.2,142.13,6.3349]
[1768758419814,13.16621856,142.2,142.11,28.77660485]
[1768758420114,13.16621856,142.2,142.11,145.77660485]
[1768758421714,13.16621856,142.2,142.12,6.3354]
[1768758423015,13.16621856,142.2,142.12,20.05429633]
[1768758425918,13.16621856,142.2,142.12,137.05429633]
[1768758435532,13.16621856,142.2,142.13,13.71889633]
[1768758436634,13.14378671,142.19,142.11,130.71889633]
[1768758437228,13.14378671,142.19,142.12,13.71889633]
[1768758438835,19.47618671,142.19,142.12,13.71889633]
[1768758441441,6.3329,142.18,142.12,13.71889633]
[1768758444553,19.41476964,142.18,142.12,13.71889633]
[1768758449051,13.05669561,142.17,142.12,13.71889633]
[1768758449355,13.05669561,142.16,142.11,117.0]
[1768758450055,13.05669561,142.16,142.11,130.79034457]
[1768758452357,13.05669561,142.16,142.11,13.79034457]
[1768758466668,12.96275434,142.18,142.12,13.15761298]
[1768758478571,12.89245032,142.2,142.13,12.6876064]
[1768758479869,12.89245032,142.2,142.14,19.0221064]
[1768758492377,12.89245032,142.2,142.14,12.6876064]
[1768758498980,12.89245032,142.2,142.15,12.6876064]
[1768758499980,175.84601385,142.22,142.15,12.6876064]
[1768758500179,12.81322246,142.21,142.15,12.6876064]
[1768758504188,12.81322246,142.21,142.15,19.0216064]
[1768758504581,12.81322246,142.21,142.16,13.40358554]
[1768758507385,163.03279139,142.22,142.17,13.40358554]
[1768758512293,163.03279139,142.22,142.17,19.73668554]
[1768758518895,175.78436602,142.22,142.17,19.73668554]
[1768758524310,0.04454964,142.21,142.18,0.05089847]
[1768758526510,12.77853622,142.21,142.18,0.05089847]
[1768758537320,12.77853622,142.21,142.15,136.33147368]
[1768758537620,12.77853622,142.21,142.15,19.33147368]
[1768758583952,12.77853622,142.21,142.15,12.99757368]
[1768758588957,19.11013622,142.21,142.15,12.99757368]
[1768758591953,6.332,142.2,142.15,12.99757368]
[1768758592452,12.77853622,142.21,142.15,12.99757368]
[1768758592847,6.332,142.2,142.15,12.99757368]
[1768758598662,12.61201772,142.19,142.12,117.0]
[1768758598962,12.61201772,142.19,142.11,117.0]
[1768758599563,0.04559901,142.16,142.11,117.0]
[1768758600664,13.45148473,142.16,142.1,13.07569743]
[1768758601863,6.3343,142.15,142.1,13.07569743]
[1768758603666,6.3348,142.14,142.1,13.07569743]
[1768758604372,6.3348,142.14,142.1,9.743e-05]
[1768758606880,13.40588572,142.15,142.1,9.743e-05]
[1768758630001,13.40588572,142.15,142.09,6.3367]
[1768758637707,0.04559901,142.16,142.09,6.3367]
[1768758639707,12.38334694,142.15,142.09,6.3367]
[1768758644417,12.38334694,142.15,142.09,19.37284383]
[1768758673836,0.04559901,142.16,142.1,13.08101975]
[1768758674832,0.04559901,142.16,142.12,13.08101975]
[1768758675038,13.46089223,142.2,142.12,13.08101975]
[1768758675835,13.46089223,142.2,142.14,19.41551975]
[1768758679035,13.46089223,142.2,142.15,13.08101975]
[1768758689949,13.46089223,142.2,142.15,19.41501975]
[1768758704657,13.46089223,142.2,142.16,6.3336]
[1768758734985,13.46089223,142.2,142.14,19.9693628]
[1768758735289,13.46089223,142.2,142.14,13.6351628]
[1768758736790,13.46089223,142.2,142.13,125.74871476]
[1768758736991,13.46089223,142.2,142.13,117.0]
[1768758737491,13.71636837,142.18,142.13,117.0]
[1768758739692,13.71636837,142.18,142.12,19.9704628]
[1768758745594,13.71636837,142.18,142.12,6.3353]
[1768758745799,13.71636837,142.18,142.1,146.02430692]
[1768758746002,13.71636837,142.18,142.11,13.93959216]
[1768758746897,13.71636837,142.18,142.11,20.27539216]
[1768758758112,13.71636837,142.18,142.12,13.78970831]
[1768758762409,13.71636837,142.18,142.11,6.3358]
[1768758762617,13.68977203,142.17,142.11,6.3358]
[1768758770020,13.68977203,142.17,142.1,130.78970831]
[1768758770319,13.68977203,142.16,142.1,13.78970831]
[1768758770919,13.68977203,142.15,142.1,13.78970831]
[1768758773523,20.78359618,142.18,142.1,13.78970831]
[1768758773722,14.45049618,142.17,142.1,13.78970831]
[1768758774824,14.45049618,142.17,142.11,14.4642455]
[1768758780923,6.3331,142.18,142.12,14.4642455]
[1768758781317,20.78359618,142.18,142.12,14.4642455]
[1768758793942,14.45049618,142.18,142.12,14.4642455]
[1768758802747,1.77467615,142.17,142.12,14.4642455]
[1768758804344,14.45049618,142.18,142.12,14.4642455]
[1768758804551,16.22517233,142.18,142.12,20.7996455]
[1768758805946,14.58470391,142.2,142.14,13.79897912]
[1768758806150,16.35938006,142.2,142.14,13.79897912]
[1768758809654,14.58470391,142.2,142.14,20.13347912]
[1768758809854,16.35938006,142.2,142.14,20.13347912]
[1768758814861,14.58470391,142.2,142.15,13.79897912]
[1768758815056,16.35938006,142.2,142.15,13.79897912]
[1768758815758,1.77467615,142.2,142.16,13.79897912]
[1768758818966,15.89107649,142.21,142.16,13.79897912]
[1768758820063,7.55429594,142.25,142.16,20.13257912]
[1768758820361,1.77372814,142.22,142.16,20.13257912]